Cogmind - Beta 13 @@@ ROGUE MODE // 2024.04.11 @ 18:56:03 Player: lazy_engineer Result: Self-destructed Performance ------------- Evolutions (2) 1000 Regions Visited (5) 1000 Robots Destroyed (21) 105 Value Destroyed (626) 626 Prototype IDs (23) 460 Alien Tech Used (0) 0 Bonus (458) 458 TOTAL SCORE: 3649 Bonus ------- Follower Combat Kills 188 Aligned with FarCom 300 Friendly Fire -30 Cogmind --------- Core Integrity 443/550 Matter 300/300 Energy 250/250 System Corruption 1% Temperature Cool (9) Movement Walking (120) Location -8/Materials Parts ------- > --- POWER (1) -------- Ion Engine > --- PROPULSION (4) --- Aluminum Leg > --- UTILITY (4) ------ Lightpack 2.0 > --- WEAPON (2) ------- (None) > --- INVENTORY (40) --- Light Ion Engine Airjet Huge Storage Unit Sensor Array Signal Interpreter Heavy Assault Rifle Mining Laser Peak State ------------ > --- POWER ------------ Ion Engine > --- PROPULSION ------- Light Treads Light Treads Aluminum Leg Wheel > --- UTILITY ---------- Lightpack 2.0 Light Armor Plating > --- WEAPON ----------- Assault Rifle Mining Laser > --- INVENTORY -------- Light Ion Engine Huge Storage Unit Sensor Array Signal Interpreter Assault Rifle [Rating: 38] Favorites ----------- Power Ion Engine Engine Ion Engine Propulsion Light Treads Treads Light Treads Leg Aluminum Leg Wheel Wheel Utility Small Storage Unit Device Sensor Array Storage Small Storage Unit Protection Light Armor Plating Weapon Assault Rifle Ballistic Gun Assault Rifle Special Weapon Mining Laser Build | -11 -10 -10 -10 -9 -8 ------- Run | Yrd Mat Min Exi Min Mat Slots Evolved 4 | . . . . . 4 Power . | . . . . . . Propulsion 2 | . . . . . 2 Utility 2 | . . . . . 2 Weapon . | . . . . . . Parts Attached 27 | 7 4 1 1 4 10 Power 1 | 1 . . . . . Engine 1 | 1 . . . . . Core . | . . . . . . Reactor . | . . . . . . Propulsion 12 | 2 2 . . 2 6 Treads 5 | 1 1 . . 1 2 Leg 4 | . . . . . 4 Wheel 3 | 1 1 . . 1 . Hover . | . . . . . . Flight . | . . . . . . Utility 8 | 2 2 1 1 1 1 Device 1 | . . 1 . . . Storage 6 | 2 2 . 1 . 1 Processor . | . . . . . . Hackware . | . . . . . . Protection 1 | . . . . 1 . Artifact . | . . . . . . Weapon 6 | 2 . . . 1 3 Energy Gun . | . . . . . . Energy Cannon . | . . . . . . Ballistic Gun 5 | 2 . . . . 3 Ballistic Cannon . | . . . . . . Launcher . | . . . . . . Special Weapon 1 | . . . . 1 . Impact Weapon . | . . . . . . Slashing Weapon . | . . . . . . Piercing Weapon . | . . . . . . Special Melee Weapon . | . . . . . . Unidentified Prototypes . | . . . . . . Parts Lost 9 | . . . . . 9 Power . | . . . . . . Propulsion 6 | . . . . . 6 Utility 1 | . . . . . 1 Weapon 2 | . . . . . 2 Highest Loss Streak 3 | . . . . . 3 To Critical Strikes . | . . . . . . Average Slot Usage (%) 96 | . 100 100 100 100 66 Engine 13 | . 14 14 14 14 9 Treads 14 | . 16 14 14 14 16 Leg 1 | . . . . . 10 Wheel 12 | . 11 14 14 13 3 Device 2 | . . 8 14 . . Storage 18 | . 28 19 14 14 9 Protection 5 | . . . . 13 1 Ballistic Gun 26 | . 28 28 28 27 14 Naked Turns . | . . . . . . Heaviest Build 92 | 19 19 19 90 92 16 Greatest Support 60 | 16 40 10 10 40 60 Greatest Overweight (x) 9 | 1 1 1 8 9 4 Average Overweight (x) 3 | . . 1 4 8 . Largest Inventory Capacity 40 | 8 25 8 25 25 40 Average Capacity 18 | 7 8 8 18 25 39 Most Carried 11 | 4 8 8 11 9 9 Average Carried 7 | 2 5 8 9 9 6 Final Capacity 40 | 8 8 8 25 25 40 Final Carried 9 | 4 8 8 9 9 7 Class Distribution -------------------- 87% | Mutant 10% | Hauler-Mutant Dominant Class ---------------- Mutant | -10/Materials Mutant | -10/Mines Mutant | -10/Exiles Mutant | -9/Mines Hauler-Mutant | -8/Materials Resources | -11 -10 -10 -10 -9 -8 ----------- Run | Yrd Mat Min Exi Min Mat Matter Collected 782 | 282 194 42 . 58 206 Remotely . | . . . . . . Salvage Created 766 | 85 367 . . . 314 Parts 39 | 1 26 . . . 12 Haulers Intercepted . | . . . . . . Recyclers Shooed 2 | . 1 . . . 1 Parts Field Recycled . | . . . . . . Retrieved Matter . | . . . . . . Parts Self-Destructed . | . . . . . . Prevented . | . . . . . . Kills | -11 -10 -10 -10 -9 -8 ------- Run | Yrd Mat Min Exi Min Mat Combat Hostiles Destroyed 16 | . 8 . . . 8 Melee 1 | . . . . . 1 Guns 15 | . 8 . . . 7 Classes Destroyed 6 | 1 4 . . . 1 Recycler 2 | 1 1 . . . . Operator 2 | . 2 . . . . Watcher 1 | . 1 . . . . Swarmer 4 | . 3 . . . 1 Grunt 11 | . 5 . . . 6 Sentry 1 | . . . . . 1 Best Kill Streak 3 | 1 3 . . . 3 Combat Bots Only 3 | . 3 . . . 3 Max Kills in Single Turn 1 | 1 1 . . . 1 Gunslinging . | . . . . . . Exploded . | . . . . . . Melee 1 | . . . . . 1 Uniques/NPCs Destroyed . | . . . . . . Combat | -11 -10 -10 -10 -9 -8 -------- Run | Yrd Mat Min Exi Min Mat Hostile Shots Fired 125 | . 26 . . 14 85 Missed 31 | . 4 . . 6 21 Damage Taken 1307 | . 268 . . 112 927 Core 185 | . 78 . . . 107 Absorbed by Shields . | . . . . . . Core Remaining (%) 84 | 100 . . . 68 . Volleys Fired 69 | 4 31 . . 5 29 Largest 2 | 1 2 . . 2 2 Hottest 100 | 20 40 . . 100 43 Shots Fired 131 | 4 62 . . 8 57 Gun 129 | 4 62 . . 6 57 Cannon . | . . . . . . Launcher . | . . . . . . Special 2 | . . . . 2 . Kinetic 129 | 4 62 . . 6 57 Thermal 2 | . . . . 2 . Explosive . | . . . . . . Electromagnetic . | . . . . . . Robot Hit Streak 24 | 2 6 . . 2 24 Robot Miss Streak 5 | 1 3 . . 3 5 Penetration Max . | . . . . . . Secondary Targets . | . . . . . . Shots Hit Robots 86 | 3 38 . . 2 43 Core Hits 48 | 2 19 . . 2 25 Critical Kills . | . . . . . . Critical Parts Destroyed 1 | . . . . . 1 Critical Strikes 1 | . . . . . 1 Destroy 1 | . . . . . 1 Melee Attacks . | . . . . . . Impact . | . . . . . . Slashing . | . . . . . . Piercing . | . . . . . . Sneak Attacks . | . . . . . . Combat Hostiles . | . . . . . . Follow-up Attacks . | . . . . . . Damage Inflicted 1223 | 36 491 . . 54 642 Guns 1180 | 36 491 . . 54 599 Cannons . | . . . . . . Explosions . | . . . . . . Melee . | . . . . . . Ramming 43 | . . . . . 43 Kinetic 1180 | 36 491 . . 54 599 Thermal . | . . . . . . Explosive . | . . . . . . Electromagnetic . | . . . . . . Impact . | . . . . . . Slashing . | . . . . . . Piercing . | . . . . . . Highest Corruption 1 | . . . . . 1 Average Corruption 1 | . . . . . 1 Corruption Purged . | . . . . . . Corruption Blocked . | . . . . . . Effects 2 | . . . . . 2 Message Errors 1 | . . . . . 1 Matter Fused 1 | . . . . . 1 Overload Shots . | . . . . . . Overflow Damage . | . . . . . . Projectiles . | . . . . . . Explosions . | . . . . . . Melee . | . . . . . . Knockbacks 1 | . . . . . 1 Impact 1 | . . . . . 1 Kinetic . | . . . . . . Secondary . | . . . . . . Self-Inflicted Damage . | . . . . . . Shots . | . . . . . . Rammed . | . . . . . . Targets Rammed 20 | . . . . . 20 Kicked 20 | . . . . . 20 Crushed . | . . . . . . Highest Temperature 64 | . 6 . . 64 15 Average Temperature 21 | . 3 . . 27 9 Received Heat Transfer 594 | . 102 . . 60 432 Siege Activations . | . . . . . . Robots Corrupted . | . . . . . . Combat Hostiles . | . . . . . . Parts Fried . | . . . . . . Impact Corruptions . | . . . . . . Robots Melted . | . . . . . . Combat Hostiles . | . . . . . . Parts Melted 2 | . . . . . 2 Heat Transferred . | . . . . . . Parts Sabotaged . | . . . . . . Parts Stolen . | . . . . . . Parts Stripped . | . . . . . . Power Chain Reactions . | . . . . . . Alert | -11 -10 -10 -10 -9 -8 ------- Run | Yrd Mat Min Exi Min Mat Peak Influence 287 | 5 158 19 . 55 287 Initial 19 | . 3 19 . . . Average 38 | 2 54 13 . 6 152 Maximum Alert Level 1 | . . . . . 1 Low Security (%) 95 | 100 100 100 . 100 58 Level 1 4 | . . . . . 41 Level 2 . | . . . . . . Level 3 . | . . . . . . Level 4 . | . . . . . . Level 5 . | . . . . . . High Security . | . . . . . . Max Security . | . . . . . . Squads Dispatched 9 | . 5 . . . 4 Investigation 2 | . 2 . . . . Extermination . | . . . . . . Reinforcement 4 | . 3 . . . 1 Assault . | . . . . . . Garrison 3 | . . . . . 3 Intercept . | . . . . . . Searches Triggered . | . . . . . . Construction Impeded . | . . . . . . Haulers Reinforced . | . . . . . . Active Scanning Responses . | . . . . . . Cargo Convoy Interrupts . | . . . . . . Stealth | -11 -10 -10 -10 -9 -8 --------- Run | Yrd Mat Min Exi Min Mat Distress Signals 1 | . . . . . 1 Communications Jammed . | . . . . . . Distress Signals . | . . . . . . Times Spotted 37 | . 12 . . 3 22 Peak Tracking Total 7 | . 3 . . 3 7 Tactical Retreats 3 | . . . . . 3 Traps | -11 -10 -10 -10 -9 -8 ------- Run | Yrd Mat Min Exi Min Mat Traps Triggered 4 | . 3 . . . 1 Indirectly . | . . . . . . Trap Hack Attempts . | . . . . . . Triggered . | . . . . . . Disarmed . | . . . . . . Reprogrammed . | . . . . . . Reused . | . . . . . . Traps Extracted . | . . . . . . Installed . | . . . . . . Triggered . | . . . . . . Machines | -11 -10 -10 -10 -9 -8 ---------- Run | Yrd Mat Min Exi Min Mat Machines Disabled 1 | . . . . . 1 Max in Single Turn . | . . . . . . Machines Repaired . | . . . . . . Machines Dismantled . | . . . . . . Machines Sabotaged . | . . . . . . Overloaded Fab Kills . | . . . . . . Hacking | -11 -10 -10 -10 -9 -8 --------- Run | Yrd Mat Min Exi Min Mat Machines Accessed 8 | . 5 . 1 . 2 Terminals 4 | . 3 . . . 1 Fabricators . | . . . . . . Repair Stations 1 | . . . . . 1 Recycling Units 2 | . 2 . . . . Scanalyzers . | . . . . . . Garrison Access . | . . . . . . Total Hacks 15 | . 8 . 1 . 6 Successful 9 | . 6 . 1 . 2 Failed 6 | . 2 . . . 4 Catastrophic 2 | . 2 . . . . Database Lockouts . | . . . . . . Manual 9 | . 4 . 1 . 4 Terminals 9 | . 5 . . . 4 Fabricators . | . . . . . . Repair Stations 2 | . . . . . 2 Recycling Units 3 | . 3 . . . . Scanalyzers . | . . . . . . Garrison Access . | . . . . . . Terminal Hacks 5 | . 3 . 1 . 1 Hauler Manifests 2 | . 1 . . . 1 Zone Layout 2 | . 2 . . . . Derelict Proto ID Bank 1 | . . . 1 . . Fabricator Hacks . | . . . . . . Repair Station Hacks 1 | . . . . . 1 Scan Component 1 | . . . . . 1 Recycling Unit Hacks 2 | . 2 . . . . Report Inventory 2 | . 2 . . . . Scanalyzer . | . . . . . . Garrison Access Hacks . | . . . . . . Unauthorized Hacks 1 | . 1 . . . . Terminals . | . . . . . . Fabricators . | . . . . . . Repair Stations . | . . . . . . Recycling Units 1 | . 1 . . . . Reject 1 | . 1 . . . . Scanalyzers . | . . . . . . Garrison Access . | . . . . . . Data Cores Recovered . | . . . . . . Used . | . . . . . . Hacking Detections 6 | . 4 . . . 2 Full Trace Events . | . . . . . . Feedback Events . | . . . . . . Feedback Blocked . | . . . . . . Robot Schematics Acquired . | . . . . . . Robots Built . | . . . . . . Authchips . | . . . . . . Time . | . . . . . . Total Robot Build Rating . | . . . . . . Part Schematics Acquired . | . . . . . . Parts Built . | . . . . . . Authchips . | . . . . . . Time . | . . . . . . Total Part Build Rating . | . . . . . . Parts Repaired . | . . . . . . Time . | . . . . . . Parts Recycled . | . . . . . . Recycled Matter . | . . . . . . Retrieved Matter . | . . . . . . Retrieved Components . | . . . . . . Parts Scanalyzed . | . . . . . . Part Schematics Acquired . | . . . . . . Parts Damaged . | . . . . . . Bothacking | -11 -10 -10 -10 -9 -8 ------------ Run | Yrd Mat Min Exi Min Mat Used RIF Installer . | . . . . . . Robots Hacked . | . . . . . . Non-combat . | . . . . . . Combat . | . . . . . . Robot Hacks Applied . | . . . . . . Relay Couplers Released . | . . . . . . Fabnet Peak Effective % . | . . . . . . Robots Rewired . | . . . . . . Allies Hacked . | . . . . . . Hacks Repelled . | . . . . . . Allies | -11 -10 -10 -10 -9 -8 -------- Run | Yrd Mat Min Exi Min Mat Total Allies 5 | . . . . 5 . Largest Group 4 | . . . . 4 4 Highest-Rated Group 71 | . . . . 71 71 Highest-Rated Ally 31 | . . . . 31 31 Total Orders . | . . . . . . Ally Attacks 48 | . . . . 9 39 Total Damage 645 | . . . . 149 496 Kills 6 | . . . . 3 3 Allies Corrupted . | . . . . . . Allies Melted 1 | . . . . . 1 Intel | -11 -10 -10 -10 -9 -8 ------- Run | Yrd Mat Min Exi Min Mat Robot Analysis Total . | . . . . . . Derelict Logs Recovered 4 | . . 2 . 2 . Drone Launches . | . . . . . . Drone Recoveries . | . . . . . . Exploration | -11 -10 -10 -10 -9 -8 ------------- Run | Yrd Mat Min Exi Min Mat Turns Passed 3596 | 75 930 581 302 1331 377 Spaces Moved 1872 | 47 383 475 209 596 162 Core 2 | 1 . . . . 1 Treads 82 | . 62 . . 7 13 Legs 59 | . . . . . 59 Wheels 1729 | 46 321 475 209 589 89 Hover . | . . . . . . Flight . | . . . . . . Fastest Speed 50 | 50 95 95 95 200 95 Average Speed 143 | 105 108 95 142 215 112 Slowest Speed 320 | 115 160 95 200 320 250 Overloaded Moves . | . . . . . . Propulsion Burnouts . | . . . . . . Robots Hopped . | . . . . . . Cave-ins Triggered . | . . . . . . Exploration Rate (%) 52 | 4 49 87 60 97 19 Regions Visited 5 Branch Regions 3 Pre-discovered Areas 1 | . . 1 . . . Known Exits Taken . | . . . . . . Unknown Exits Taken 5 | 1 1 1 1 1 . Scrap Searched 2 | . . 1 . 1 . Spaces Dug 2 | . . . . 2 . Terrain Destroyed 2 | . . . . 2 . Melee . | . . . . . . Projectile 2 | . . . . 2 . AOE . | . . . . . . Terrain Rammed . | . . . . . . Walls Destroyed . | . . . . . . Machines Disabled . | . . . . . . Actions | -11 -10 -10 -10 -9 -8 --------- Run | Yrd Mat Min Exi Min Mat Total 2646 | 68 834 604 214 631 295 Wait 628 | . 411 127 2 27 61 Move 1867 | 46 382 474 208 595 162 Hop . | . . . . . . Pick Up 29 | 11 5 1 1 . 11 Fast Attach . | . . . . . . Attach 13 | 7 . . . . 6 Detach . | . . . . . . Swap 14 | . 4 1 1 4 4 Drop 6 | . 1 1 2 . 2 Fire 69 | 4 31 . . 5 29 Melee . | . . . . . . Ram . | . . . . . . Kick 20 | . . . . . 20 Crush . | . . . . . . Escape Stasis . | . . . . . . Rewire . | . . . . . . Trap . | . . . . . . Miscellaneous . | . . . . . . Route ------- -11/Scrapyard -10/Materials (discovered 2 exits: [*Mat] / [*Min]) -10/Mines (discovered 3 exits: [*Mat x2] / *Exi) -10/Exiles -9/Mines (discovered 2 exits: *Mat x2) -8/Materials (discovered 1 exit: [*Fac]) History --------- Turn | Location | Event 2 | -11/Scrapyard | Met Revision 17 9 | -11/Scrapyard | Discovered new exit (range 15) 76 | -11/Scrapyard | Entered Materials 304 | -10/Materials | Build established: Mutant 905 | -10/Materials | Discovered new exit (range 10) 986 | -10/Materials | Discovered new exit (range 15) 1006 | -10/Materials | Entered Mines 1018 | -10/Mines | Learned 2 Materials zone layouts 1048 | -10/Mines | Discovered new exit (range 6) 1198 | -10/Mines | Assembled infested the area 1563 | -10/Mines | Discovered new exit (range 11) 1582 | -10/Mines | Discovered new exit (range 5) 1587 | -10/Mines | Entered Exiles 1610 | -10/Exiles | Met 8R-AWN 1627 | -10/Exiles | Met EX-HEX 1652 | -10/Exiles | Met EX-BIN 1666 | -10/Exiles | Aligned with FarCom system 1667 | -10/Exiles | Given EX-Vault access code 1691 | -10/Exiles | Opened EX-Vault 1699 | -10/Exiles | Found Lightpack 2.0 1738 | -10/Exiles | Warned to stay clear of 0b10 Research branches 1796 | -10/Exiles | Met EX-DEC 1869 | -10/Exiles | Discovered new exit (range 12) 1889 | -10/Exiles | Left Exiles lab with Lightpack 2.0 1889 | -10/Exiles | Entered Mines 2284 | -9/Mines | Discovered new exit (range 7) 2423 | -9/Mines | Discovered new exit (range 13) 2936 | -9/Mines | Learned Materials garrison access intel 3016 | -9/Mines | Assisted by bots powering up and referring to "LRC-V3" 3220 | -9/Mines | Entered Materials 3220 | -8/Materials | Accompanied by 4 allies 3220 | -8/Materials | Evolved 4 slots: Propulsion x2, Utility x2 3222 | -8/Materials | Loaded intel: 1 garrison access location 3225 | -8/Materials | Led the pair of lost Derelicts to an unsafe place 3288 | -8/Materials | Garrison activated, responded to threat 3364 | -8/Materials | Lost 4 allies 3387 | -8/Materials | Discovered new exit (range 10) 3527 | -8/Materials | Build established: Hauler-Mutant 3587 | -8/Materials | Lost 3 parts (1n2w) 3597 | -8/Materials | Self-destructed Last Messages --------------- 03556_ Slug penetrates Wall. 03556_ Assault Rifle destroyed. 03573_ Kicked G-47 Trooper out of the way. 03575_ Kicked G-47 Trooper. 03577_ Kicked G-47 Trooper out of the way. 03580_ Kicked G-47 Trooper. 03581_ System corrupted: Matter fused (-5). 03581_ Kicked G-47 Trooper out of the way. 03584_ Kicked G-47 Trooper. 03587_ Aluminum Leg destroyed. 03587_ Kicked G-47 Trooper. 03589_ Kicked G-47 Trooper out of the way. 03590_ Kicked G-47 Trooper. 03591_ Kicked G-47 Trooper out of the way. 03592_ Aluminum Leg destroyed. 03592_ Kicked G-47 Trooper. 03593_ G-47 Trooper knocked back. 03595_ Kicked G-47 Trooper. 03596_ Kicked G-47 Trooper out of the way. 03596_ G-47 Trooper destroyed. Map ----- +----------------------------------------------------+ | ?????????????????????????????????????????????????? | | #????????????????????????????????????????????????? | | #????????????????????????????????????????????????? | | ######???????????????????????????????????????????? | | ???????????????????????????????????????????? | | ???????????????????????????????????????????? | | ???????????????????????????? ??????????????? | | ######+####### # ????????????? ??????????????? | | ??# #?# # ????????????? ??????????????? | | ??# """ #?# # ????????????? ??????????????? | | ?## """ #?# ####????????????? ??????????????? | | ?# """ #?# #???????????????? ??????????????? | | ### #?# #???????????????? ??????????????? | | # """ #?# ####????????????# #?????????????? | | # G" #?# # ????????????# #?????????????? | | # """ #?# # ????????????+ #?????????????? | | # #?# # ????????????# #?????????????? | | #####+###### + ????????????# #?????????????? | | ##### # ????????????# #?????????????? | | + # ????????????# #?????????????? | | ##### #################s###### T ?? | | #???## #####! gh s sg b =g* | | #????# a ############## #??? | | #????# #############g #?????????????????????? | | ########/##??????????# #?????????????????????? | | # % #??????????#! @ #?????????????????????? | | #" #??????????## % ##?????????????????????? | | # #T #???????????#% %#??????????????????????? | | # #" #???????????# %%#??????????????????????? | | # [# #???????????# u ###########????????????? | | %# "" #???????????# u# #????????????? | | + """ #######?????#^ #""" #????????????? | | # """ # ####### #"R #????????????? | | # [=#% #""" """ #????????????? | | # "" %%+ % % + """ #????????????? | | ! # "" =!# # """ #????????????? | | # """ %# ####### # #????????????? | | # =[#######?????# # #????????????? | | ###### #???????????# ###########????????????? | | #????###???????????#r #??????????????????????? | | #???????????######## ########???????????????? | | #???????????# # # #???????????????? | | #???????????# # # #???????????????? | | #???????????#""" *%+ #???????????????? | | #???????????#""" * # # #???????????????? | | #???????????#""" !# < ########???????????????? | | #???????????# # #??????????????????????? | | #???????????############??????????????????????? | | ?????????????????????????????????????????????? | | ??????????????????????????????????????????????? | +----------------------------------------------------+ Best States ------------- Heat Dissipation 31 Energy Generation 10 Energy Capacity 250 Matter Stores 300 Matter Capacity 300 Sight Range 16 Robot Scan Range 14 Terrain Scan Density 10 Armor Coverage 150 Evasion (%) 55 Recoil Reduction 3 Item Schematics ----------------- None Robot Schematics ------------------ None Fabricated ------------ Nothing Alien Tech Used ----------------- None Achievements -------------- None Challenges ------------ None Game ------ Seed GrenadeBattleLegs Manual? 0 Play Time 00:22:53 Cumulative 32.0 hours Start 2024.04.11 @ 18:35:07 End 2024.04.11 @ 18:56:03 Sessions 1 Manual Loads 0 Difficulty Rogue Special Mode None Game No. 64 Rogue 64 Adventurer 0 Explorer 0 Win Type - Total 0 Types 0/0/0/0/0/0/0/0/0 Lore% 23 Gallery% 26 Achievement% 23 Wizard Run 0 Options --------- Layout 0 ASCII 0 Keyboard 0 Movement Mouse Keybinds 0 Fullscreen 1 Font 24/Smallcaps Map View 76x50 Zoom Use 0% Tactical HUD 1 Map Filters NONE Filters NONE Steam 1 RUN: 9a5edd36-96e3-433a-8212-b3a317656d01